Cogmind - Beta 13 @@@ ROGUE MODE // 2024.03.26 @ 20:45:54 Player: Phosphorus Result: Destroyed by Light Fission Core chain reaction Performance ------------- Evolutions (5) 2500 Regions Visited (19) 3800 Robots Destroyed (326) 1630 Value Destroyed (12346) 12346 Prototype IDs (52) 1040 Alien Tech Used (0) 0 Bonus (4473) 4473 TOTAL SCORE: 25789 Bonus ------- High Alert Combat Kills 1823 Follower Combat Kills 615 Entered Garrisons 1000 Used RIF Installer 2000 Aligned with FarCom 300 Friendly Fire -1265 Cogmind --------- Core Integrity 0/1000 Matter 85/300 Energy 33/100 System Corruption 7% Temperature Cool (12) Movement Hovering (146) Ox2 Location -5/Factory Parts ------- > --- POWER (1) -------- (None) > --- PROPULSION (7) --- Gyrokinetic Inverter Gyrokinetic Inverter > --- UTILITY (7) ------ High-capacity Storage Unit Advanced Signal Interpreter Improved Transmission Jammer Relay Coupler [Grunt] (37) Relay Coupler [Grunt] (29) Relay Coupler [Hunter] (11) > --- WEAPON (2) ------- Enhanced Gauss Cannon Improved Datajack > --- INVENTORY (20) --- Micro Fission Core Combat Antigrav System Improved Cooling System Improved Cooling System Matter Compressor (0) Improved Medium Armor Plating Authchip [Propulsion] Relay Coupler [Heavy] (17) Mass Driver Linear Accelerator Heavy Linear Accelerator Mini Smartbomb Launcher Mini Smartbomb Launcher Improved Datajack Field Lobotomy Kit (4) Peak State ------------ > --- POWER ------------ Light Angular Momentum Engine > --- PROPULSION ------- Gyrokinetic Inverter Gyrokinetic Inverter Gyrokinetic Inverter Gyrokinetic Inverter Gyrokinetic Inverter Gyrokinetic Inverter Linear Gravjet > --- UTILITY ---------- Improved Cooling System High-capacity Storage Unit Advanced Signal Interpreter Improved Weapon Cycler Improved Weapon Shielding Relay Coupler [Grunt] Relay Coupler [Grunt] > --- WEAPON ----------- Linear Accelerator Mini Smartbomb Launcher > --- INVENTORY -------- Enhanced Nuclear Core Micro Fission Core Combat Antigrav System Improved Cooling System Improved Cooling System Matter Compressor Authchip [Propulsion] Relay Coupler [Hunter] Relay Coupler [Heavy] Mass Driver Enhanced Gauss Cannon Heavy Linear Accelerator Heavy Rocket Launcher Fusion Bomb Launcher Improved Datajack Improved Datajack Improved Datajack Improved Datajack Field Lobotomy Kit [Rating: 97] Favorites ----------- Power Enhanced Nuclear Core Engine Improved Ion Engine Power Core Enhanced Nuclear Core Reactor Light Particle Reactor Propulsion Light Treads Treads Light Treads Leg Aluminum Leg Wheel Wheel Hover Unit Combat Airjet Flight Unit Cesium-ion Thruster Utility Large Storage Unit Device Coolant Injector Storage Large Storage Unit Processor Advanced Targeting Computer Hackware Relay Coupler [Grunt] Protection Improved Light Armor Plating Weapon Enhanced Autogun Energy Gun Improved Lightning Gun Energy Cannon Advanced Beam Cannon Ballistic Gun Enhanced Autogun Ballistic Cannon Mini Assault Cannon Launcher Mini Grenade Launcher Special Weapon Remote Datajack Impact Weapon Power Maul Slashing Weapon Chainsword Special Melee Weapon Improved Datajack Build | -11 -10 -10 -9 -9 -9 -8 -8 -8 -8 -8 -7 -7 -6 -6 -6 -6 -5 -5 -5 ------- Run | Yrd Mat Min Mat Min Exi Min Mat Gar Mat Gar Fac Gar Fac Gar Fac Gar Fac Was Fac Slots Evolved 10 | . . . 2 . . . 2 . . . 2 . 2 . . . 2 . . Power . | . . . . . . . . . . . . . . . . . . . . Propulsion 5 | . . . 1 . . . 1 . . . . . 1 . . . 2 . . Utility 5 | . . . 1 . . . 1 . . . 2 . 1 . . . . . . Weapon . | . . . . . . . . . . . . . . . . . . . . Parts Attached 442 | 6 4 5 28 6 1 8 31 5 24 26 94 39 18 28 36 39 18 2 24 Power 32 | 1 . 1 1 . . 2 1 . 2 5 4 1 1 3 2 4 1 . 3 Engine 13 | 1 . 1 1 . . 2 1 . . 1 1 . 1 3 . . . . 1 Core 15 | . . . . . . . . . 2 4 3 1 . . 2 1 . . 2 Reactor 4 | . . . . . . . . . . . . . . . . 3 1 . . Propulsion 81 | 2 . 2 8 1 . 3 5 2 11 5 23 . 1 1 4 4 6 1 2 Treads 34 | 2 . 2 8 1 . 3 5 . 8 5 . . . . . . . . . Leg 2 | . . . . . . . . 2 . . . . . . . . . . . Wheel 3 | . . . . . . . . . 3 . . . . . . . . . . Hover 35 | . . . . . . . . . . . 16 . 1 1 4 4 6 1 2 Flight 7 | . . . . . . . . . . . 7 . . . . . . . . Utility 122 | 1 2 1 10 1 . 1 8 . 4 8 27 14 7 10 9 6 4 1 8 Device 20 | . . . 2 . . . . . 1 1 3 2 2 2 1 1 1 1 3 Storage 6 | 1 1 . . . . . . . . . 3 . . . . . . . 1 Processor 7 | . . . 1 . . . 2 . . 1 1 . 1 . . . . . 1 Hackware 41 | . . . . . . . . . 1 5 8 9 2 7 3 3 1 . 2 Protection 48 | . 1 1 7 1 . 1 6 . 2 1 12 3 2 1 5 2 2 . 1 Artifact . | . . . . . . . . . . . . . . . . . . . . Weapon 207 | 2 2 1 9 4 1 2 17 3 7 8 40 24 9 14 21 25 7 . 11 Energy Gun 2 | . . . . . . . 1 . . . . . . . 1 . . . . Energy Cannon 5 | . . . . . . . 1 . . . 3 . . . . 1 . . . Ballistic Gun 39 | 2 2 1 7 2 . 2 9 2 3 5 4 . . . . . . . . Ballistic Cannon 57 | . . . . . . . . . . . 11 8 4 7 9 11 4 . 3 Launcher 22 | . . . . 2 . . . 1 2 . 3 3 . 1 1 3 2 . 4 Special Weapon 15 | . . . . . . . . . . 1 . 3 . 3 2 6 . . . Impact Weapon 11 | . . . . . . . 6 . 2 . 3 . . . . . . . . Slashing Weapon 15 | . . . . . . . . . . . 8 4 2 . 1 . . . . Piercing Weapon . | . . . . . . . . . . . . . . . . . . . . Special Melee Weapon 41 | . . . 2 . 1 . . . . 2 8 6 3 3 7 4 1 . 4 Unidentified Prototypes 11 | . . . . . . . 2 . . . 5 . 1 . 2 . . . 1 Parts Lost 79 | . . 2 5 4 . 5 9 2 . 10 7 2 . 5 1 8 3 1 15 Power 11 | . . . . . . 1 . . . 3 2 1 . . . 1 . . 3 Propulsion 32 | . . 1 . 1 . 3 4 2 . 2 4 . . 2 1 4 2 . 6 Utility 24 | . . 1 3 2 . . 2 . . 3 1 1 . 3 . 2 1 1 4 Weapon 12 | . . . 2 1 . 1 3 . . 2 . . . . . 1 . . 2 Highest Loss Streak 9 | . . 1 3 3 . 5 3 2 . 3 2 2 . 4 1 3 1 1 9 To Critical Strikes 1 | . . . . 1 . . . . . . . . . . . . . . . Average Slot Usage (%) 92 | . 94 99 98 95 77 78 90 80 96 93 94 100 99 97 95 92 77 79 68 Engine 4 | . 14 14 11 11 11 10 9 9 2 . . . 5 6 . . . . . Core 3 | . . . . . . . . . 6 6 6 7 . . 5 1 4 . 3 Treads 15 | . 28 27 32 32 33 30 29 9 27 35 . . . . . . . . . Hover 13 | . . . . . . . . . . . 28 30 33 31 29 27 23 40 28 Device 3 | . . . 1 . . . . . 7 7 2 8 4 5 . 5 3 1 2 Storage 8 | . 14 14 11 11 11 11 9 9 9 9 6 7 6 6 6 6 5 5 5 Processor 3 | . . . . . . . 8 9 . 2 6 7 10 6 6 5 . . 3 Hackware 9 | . . . . . . . . . 5 8 19 13 15 20 25 20 16 11 13 Protection 9 | . 8 13 19 17 . 5 16 18 13 6 5 7 6 4 5 5 7 2 . Ballistic Gun 10 | . 28 28 21 21 11 22 13 17 17 16 . . . . . . . . . Ballistic Cannon 3 | . . . . . . . . . . . . 6 11 10 11 11 9 11 4 Special Melee Weapon 1 | . . . . . 10 . . . . . 4 . . 1 . . . . . Naked Turns . | . . . . . . . . . . . . . . . . . . . . Heaviest Build 70 | 13 32 37 42 42 33 37 42 42 49 38 39 43 56 57 48 54 64 64 70 Greatest Support 82 | 40 40 40 60 60 60 60 80 40 82 82 48 48 60 60 60 60 74 76 76 Greatest Overweight (x) 15 | . . . . 1 . . 1 13 4 . 5 . . . . 2 1 . 15 Average Overweight (x) . | . . . . . . . . 1 . . . . . . . . . . . Largest Inventory Capacity 20 | 8 15 15 15 15 15 15 15 15 15 15 15 15 15 15 15 15 15 15 20 Average Capacity 15 | 7 14 15 15 15 15 15 15 15 15 15 14 15 15 15 15 15 15 15 18 Most Carried 20 | 4 15 15 15 15 15 15 15 15 15 15 15 15 15 15 15 15 15 15 20 Average Carried 14 | 2 12 14 14 14 14 13 14 15 14 14 13 14 14 14 14 14 14 14 16 Final Capacity 20 | 8 15 15 15 15 15 15 15 15 15 15 15 15 15 15 15 15 15 15 20 Final Carried 16 | 4 15 15 15 14 15 14 15 15 15 15 13 15 15 14 15 15 15 15 16 Class Distribution -------------------- 28% | Mutant 28% | Scavenger-Mutant 26% | Bothacker-Mutant 7% | Hacker-Mutant 6% | Botlord-Mutant Dominant Class ---------------- Mutant | -10/Materials Mutant | -10/Mines Scavenger-Mutant | -9/Materials Scavenger-Mutant | -9/Mines Scavenger-Mutant | -9/Exiles Scavenger-Mutant | -8/Mines Scavenger-Mutant | -8/Materials Mutant | -8/Garrison Mutant | -8/Materials Scavenger-Mutant | -8/Garrison Hacker-Mutant | -7/Factory Bothacker-Mutant | -7/Garrison Bothacker-Mutant | -6/Factory Botlord-Mutant | -6/Garrison Botlord-Mutant | -6/Factory Bothacker-Mutant | -6/Garrison Bothacker-Mutant | -5/Factory Bothacker-Mutant | -5/Waste Bothacker-Mutant | -5/Factory Resources | -11 -10 -10 -9 -9 -9 -8 -8 -8 -8 -8 -7 -7 -6 -6 -6 -6 -5 -5 -5 ----------- Run | Yrd Mat Min Mat Min Exi Min Mat Gar Mat Gar Fac Gar Fac Gar Fac Gar Fac Was Fac Matter Collected 11215 | 225 309 184 842 181 149 120 625 161 1122 831 1411 1173 107 713 1079 987 320 . 676 Remotely . | . . . . . . . . . . . . . . . . . . . . Salvage Created 11532 | . 467 276 1252 364 . 136 1287 261 1380 840 1821 897 184 278 574 444 303 . 768 Parts 632 | . 38 11 96 14 . 7 50 27 90 45 90 44 5 16 24 25 30 . 20 Haulers Intercepted 22 | . 1 . 4 . . . 4 . 4 1 6 . . . 1 . . . 1 Recyclers Shooed 6 | . . . . . . . . . 2 . 2 . . . . . . . 2 Parts Field Recycled . | . . . . . . . . . . . . . . . . . . . . Retrieved Matter . | . . . . . . . . . . . . . . . . . . . . Parts Self-Destructed . | . . . . . . . . . . . . . . . . . . . . Prevented . | . . . . . . . . . . . . . . . . . . . . Kills | -11 -10 -10 -9 -9 -9 -8 -8 -8 -8 -8 -7 -7 -6 -6 -6 -6 -5 -5 -5 ------- Run | Yrd Mat Min Mat Min Exi Min Mat Gar Mat Gar Fac Gar Fac Gar Fac Gar Fac Was Fac Combat Hostiles Destroyed 237 | . 10 6 20 23 . 3 18 13 22 17 12 27 1 11 5 20 15 . 14 Melee 10 | . . . . . . . . . . . 3 6 1 . . . . . . Guns 102 | . 10 6 20 8 . 3 13 9 19 13 1 . . . . . . . . Cannons 45 | . . . . . . . . . . . 4 8 . 8 5 13 4 . 3 AOE 74 | . . . . 15 . . . 4 3 4 4 13 . 3 . 7 11 . 10 Classes Destroyed 17 | . 5 1 3 2 . . 3 . . . 2 . . . . 1 . . . Worker 16 | . . . . . . . 1 . 2 . 11 . . . 1 . 1 . . Builder 12 | . . . 2 . . . . . 3 . 4 . . . 1 . 1 . 1 Tunneler 5 | . . . 1 1 . . . . . . 2 . . . 1 . . . . Hauler 22 | . 1 . 4 . . . 4 . 4 1 6 . . . 1 . . . 1 Recycler 19 | . . . . . . . 3 . 3 . 6 . 1 . 2 . . . 4 Mechanic 3 | . . . . . . . . . . . 2 . . . . . . . 1 Operator 9 | . 2 . 2 . . . . . 1 . 2 . . . 1 . . . 1 Watcher 13 | . 2 . 4 . . . 1 . 4 . 2 . . . . . . . . Swarmer 77 | . 3 . 2 . . . 3 10 9 4 4 13 . 5 . 6 10 . 8 Cutter 3 | . . . . . . . . . . . . . . . . 3 . . . Grunt 74 | . 7 5 10 5 . 2 8 2 5 7 1 8 1 3 . 5 4 . 1 Brawler 11 | . . . . 2 . 1 1 . 2 1 1 1 . . 1 1 . . . Duelist 6 | . . . 1 . . . . 1 . 2 . 1 . . 1 . . . . Sentry 34 | . . 1 7 . . . 5 . 6 2 5 3 . 1 1 2 1 . . Hunter 4 | . . . . . . . 1 . . 2 . . . . 1 . . . . Programmer 18 | . . . . . . . . . . . 4 1 . 3 2 3 . . 5 Assembled 16 | . . . . 16 . . . . . . . . . . . . . . . Best Kill Streak 16 | . 4 2 3 16 . 3 4 4 6 4 6 7 2 3 2 4 8 . 8 Combat Bots Only 16 | . 3 2 3 16 . 3 4 4 3 4 5 7 1 3 2 4 8 . 5 Max Kills in Single Turn 8 | . 2 1 2 4 . 1 1 2 2 3 5 2 1 2 1 4 8 . 5 Gunslinging 1 | . 1 . 1 . . . . . . . . . . . . . . . . Exploded 6 | . . . . 4 . . . 2 2 3 4 2 . 2 . 4 6 . 4 Melee 1 | . . . . . . . . . . . 1 1 1 . . . . . . Uniques/NPCs Destroyed . | . . . . . . . . . . . . . . . . . . . . Combat | -11 -10 -10 -9 -9 -9 -8 -8 -8 -8 -8 -7 -7 -6 -6 -6 -6 -5 -5 -5 -------- Run | Yrd Mat Min Mat Min Exi Min Mat Gar Mat Gar Fac Gar Fac Gar Fac Gar Fac Was Fac Hostile Shots Fired 1599 | . 35 24 125 83 . 36 163 29 75 142 157 101 36 109 127 114 36 2 205 Missed 509 | . 6 3 32 29 . 8 39 5 24 44 58 38 16 40 58 32 14 1 62 Damage Taken 16166 | . 312 287 1349 927 . 504 1740 263 548 1683 1423 890 310 881 1057 1077 411 58 2446 Core 2595 | . 70 25 154 100 . 99 150 16 47 173 183 91 39 175 98 170 84 . 921 Absorbed by Shields 333 | . . . . . . . . 19 129 122 . 18 . . . 45 . . . Redirected to Shielding 207 | . . . 51 . . . 21 . . 14 18 . . . . . . . 103 Regen/Repaired (Parts) 630 | . . . 148 . . . . . . . 395 . . . 87 . . . . Core Remaining (%) 50 | 100 . 62 . . . 11 . . . 29 . 60 . . . 43 . . . Volleys Fired 846 | . 46 22 100 36 . 14 59 26 105 76 65 50 3 41 66 69 21 . 47 Largest 2 | . 2 2 2 2 . 2 2 2 2 2 2 2 2 2 2 2 2 . 2 Hottest 123 | . 40 43 46 46 . 46 91 50 50 50 96 96 96 96 96 96 123 . 123 Shots Fired 1450 | . 92 44 200 64 . 24 112 42 204 149 84 73 4 71 103 99 33 . 52 Gun 912 | . 92 44 200 55 . 24 111 35 198 146 7 . . . . . . . . Cannon 461 | . . . . . . . 1 . . . 75 55 4 66 97 88 30 . 45 Launcher 52 | . . . . 9 . . . 7 6 2 2 10 . 3 . 3 3 . 7 Special 25 | . . . . . . . . . . 1 . 8 . 2 6 8 . . . Kinetic 1361 | . 92 44 200 55 . 24 111 35 198 146 71 55 4 66 97 88 30 . 45 Thermal 12 | . . . . . . . 1 . . . 11 . . . . . . . . Explosive 52 | . . . . 9 . . . 7 6 2 2 10 . 3 . 3 3 . 7 Electromagnetic . | . . . . . . . . . . . . . . . . . . . . Robot Hit Streak 16 | . 12 9 15 14 . 13 13 8 14 14 12 8 3 13 8 16 13 . 14 Robot Miss Streak 7 | . 3 1 3 2 . 2 2 2 5 3 7 4 1 3 3 2 2 . 4 Penetration Max . | . . . . . . . . . . . . . . . . . . . . Secondary Targets 16 | . 1 1 3 . . 1 4 2 1 3 . . . . . . . . . Max Gunslinging Chain 1 | . 1 1 1 . . 1 1 1 1 1 . . . . . . . . . Shots Hit Robots 1090 | . 65 31 142 42 4 18 103 24 128 100 115 72 7 48 55 67 24 . 45 Core Hits 506 | . 26 14 55 50 . 6 41 16 53 39 55 35 1 20 19 27 24 . 25 Critical Kills 2 | . 1 . . . . . 1 . . . . . . . . . . . . Critical Parts Destroyed 6 | . . . 1 . . . 5 . . . . . . . . . . . . Critical Strikes 29 | . 1 . 1 . . . 7 . . . 8 5 . 3 1 1 . . 2 Destroy 2 | . 1 . 1 . . . . . . . . . . . . . . . . Blast 8 | . . . . . . . . . . . . 1 . 3 1 1 . . 2 Smash 7 | . . . . . . . 7 . . . . . . . . . . . . Sever 12 | . . . . . . . . . . . 8 4 . . . . . . . Melee Attacks 293 | . . . 1 . 5 . 37 . 5 7 125 52 9 7 20 10 5 . 10 Impact 51 | . . . . . . . 37 . 5 . 9 . . . . . . . . Slashing 161 | . . . . . . . . . . . 102 45 7 . 7 . . . . Piercing . | . . . . . . . . . . . . . . . . . . . . Sneak Attacks 86 | . . . 1 . 4 . 3 . 1 1 41 5 3 . 6 8 5 . 8 Combat Hostiles 19 | . . . . . . . . . . 1 4 5 2 . . . . . 7 Follow-up Attacks . | . . . . . . . . . . . . . . . . . . . . Damage Inflicted 31406 | . 780 405 1998 1750 . 269 2273 614 2594 1803 5421 3450 290 1424 1374 2355 1582 . 3024 Guns 9503 | . 774 405 1996 549 . 269 1288 408 2188 1576 50 . . . . . . . . Cannons 7454 | . . . . . . . 21 . . . 1148 779 31 1230 1090 1424 502 . 1229 Explosions 7266 | . . . . 1189 . . . 206 258 227 505 970 . 194 . 931 1080 . 1706 Melee 7033 | . . . . . . . 956 . 115 . 3718 1701 259 . 284 . . . . Ramming 150 | . 6 . 2 12 . . 8 . 33 . . . . . . . . . 89 Kinetic 16640 | . 774 405 1996 549 . 269 1288 408 2188 1576 902 779 31 1230 1090 1424 502 . 1229 Thermal 427 | . . . . . . . 21 . . . 296 . . . . . . . 110 Explosive 6938 | . . . . 1189 . . . 206 258 227 287 970 . 194 . 931 1080 . 1596 Electromagnetic 218 | . . . . . . . . . . . 218 . . . . . . . . Impact 1512 | . . . . . . . 956 . 115 . 441 . . . . . . . . Slashing 5521 | . . . . . . . . . . . 3277 1701 259 . 284 . . . . Piercing . | . . . . . . . . . . . . . . . . . . . . Highest Corruption 11 | . . . . 1 1 4 . . . 5 6 9 . 5 11 11 . . 7 Average Corruption 5 | . . . . 1 1 3 . . . 5 4 8 . 3 7 11 . . 3 Corruption Purged . | . . . . . . . . . . . . . . . . . . . . Corruption Blocked . | . . . . . . . . . . . . . . . . . . . . Effects 292 | . . . . 5 1 9 . . . 29 65 53 . 13 52 47 . . 18 Message Errors 70 | . . . . 1 . 5 . . . 10 18 8 . 6 12 8 . . 2 Matter Fused 74 | . . . . 1 . 1 . . . 7 17 21 . 3 9 9 . . 6 Heat Flow Errors 37 | . . . . . . 1 . . . 3 10 7 . . 7 8 . . 1 Energy Discharges 36 | . . . . 2 1 . . . . 2 8 4 . 2 7 6 . . 4 Parts Rejected 3 | . . . . . . . . . . . . . . . 2 1 . . . Parts Fused 3 | . . . . . . . . . . 1 . 1 . . . 1 . . . Data Loss (minor) 30 | . . . . . . . . . . 2 5 4 . . 8 8 . . 3 Data Loss (major) 10 | . . . . . . . . . . 2 1 3 . . 1 2 . . 1 Misfires 12 | . . . . 1 . 1 . . . 1 1 1 . 1 4 2 . . . Alerts 8 | . . . . . . . . . . 1 4 1 . 1 . 1 . . . Misdirections 1 | . . . . . . . . . . . . . . . . 1 . . . Weapon Failures 8 | . . . . . . 1 . . . . 1 3 . . 2 . . . 1 Overload Shots . | . . . . . . . . . . . . . . . . . . . . Overflow Damage 2207 | . . . . 45 . . 298 . 117 16 853 217 53 57 54 131 67 . 299 Projectiles 226 | . . . . . . . . . . . 63 8 . 47 32 33 . . 43 Explosions 600 | . . . . 45 . . . . 22 16 33 60 . 10 . 98 67 . 249 Melee 1381 | . . . . . . . 298 . 95 . 757 149 53 . 22 . . . 7 Knockbacks 35 | . . . . . . . 2 . . . 10 1 . 3 7 5 . . 7 Impact 5 | . . . . . . . 2 . . . 2 . . . . . . . 1 Kinetic 30 | . . . . . . . . . . . 8 1 . 3 7 5 . . 6 Secondary . | . . . . . . . . . . . . . . . . . . . . Self-Inflicted Damage 489 | . . . . 116 . . . 33 37 . 148 . . 23 . . . . 132 Shots 16 | . . . . 4 . . . 1 1 . 6 . . 1 . . . . 3 Rammed 17 | . 1 . 2 1 . . 2 . 5 . . . . . . . 1 . 5 Targets Rammed 21 | . 2 . 2 1 . . 3 . 7 . . . . . . . 1 . 5 Kicked . | . . . . . . . . . . . . . . . . . . . . Crushed 4 | . 1 . . . . . 1 . 2 . . . . . . . . . . Highest Temperature 415 | . 9 19 52 58 . 97 81 63 200 356 352 230 15 267 259 301 198 370 415 Average Temperature 78 | . 4 7 18 14 . 33 27 22 38 78 91 56 6 86 69 85 106 185 121 Received Heat Transfer 4138 | . 132 171 564 97 . 264 756 36 200 427 489 195 42 186 87 204 63 . 225 Effects 18 | . . . . . . . . . . . 2 1 . 1 1 2 . 3 8 Shutdowns 1 | . . . . . . . . . . . . . . . . . . . 1 Energy Bleed 7 | . . . . . . . . . . . 2 1 . 1 1 . . 1 1 Interference 10 | . . . . . . . . . . . . . . . . 2 . 2 6 Siege Activations . | . . . . . . . . . . . . . . . . . . . . Robots Corrupted . | . . . . . . . . . . . . . . . . . . . . Combat Hostiles . | . . . . . . . . . . . . . . . . . . . . Parts Fried 16 | . . . . . . . 10 . 1 . 5 . . . . . . . . Impact Corruptions 19 | . . . . . . . 13 . 1 . 4 . . . . . . . 1 Robots Melted . | . . . . . . . . . . . . . . . . . . . . Combat Hostiles . | . . . . . . . . . . . . . . . . . . . . Parts Melted 4 | . . . . . . . . . . . 2 1 . . 1 . . . . Heat Transferred 420 | . . . . . . . 37 . . . 333 . . . . . . . 50 Parts Sabotaged . | . . . . . . . . . . . . . . . . . . . . Parts Stolen . | . . . . . . . . . . . . . . . . . . . . Parts Stripped . | . . . . . . . . . . . . . . . . . . . . Power Chain Reactions 3 | . . . . . . . . . . . 3 . . . . . . . . Alert | -11 -10 -10 -9 -9 -9 -8 -8 -8 -8 -8 -7 -7 -6 -6 -6 -6 -5 -5 -5 ------- Run | Yrd Mat Min Mat Min Exi Min Mat Gar Mat Gar Fac Gar Fac Gar Fac Gar Fac Was Fac Peak Influence 1463 | . 265 126 344 249 . 60 264 397 616 922 879 1463 905 1002 713 1230 978 281 431 Initial 767 | . . 1 11 133 . . 23 59 193 397 483 329 767 579 525 414 645 251 189 Average 450 | . 89 76 147 108 . 52 120 245 452 711 524 890 783 863 587 755 846 268 251 Maximum Alert Level 4 | . 1 . 1 1 . . 1 1 2 3 3 4 3 3 3 4 3 1 2 Low Security (%) 28 | 100 88 100 73 76 . 100 89 40 3 . . . . . . . . . 20 Level 1 15 | . 11 . 26 23 . . 10 60 21 5 9 6 . . . . . 100 70 Level 2 34 | . . . . . . . . . 74 51 77 16 . 17 99 35 21 . 9 Level 3 19 | . . . . . . . . . . 42 13 49 100 82 . 56 78 . . Level 4 2 | . . . . . . . . . . . . 28 . . . 7 . . . Level 5 . | . . . . . . . . . . . . . . . . . . . . High Security . | . . . . . . . . . . . . . . . . . . . . Max Security . | . . . . . . . . . . . . . . . . . . . . Squads Dispatched 46 | . 2 . 3 1 . . 1 . 2 . 14 . 3 . 9 . 4 . 7 Investigation 18 | . . . 1 1 . . . . 2 . 6 . 2 . 3 . . . 3 Extermination 9 | . . . . . . . . . . . 4 . . . 2 . 1 . 2 Reinforcement 14 | . 2 . 2 . . . 1 . . . 3 . 1 . 2 . 1 . 2 Assault 4 | . . . . . . . . . . . . . . . 2 . 2 . . Garrison 1 | . . . . . . . . . . . 1 . . . . . . . . Intercept . | . . . . . . . . . . . . . . . . . . . . Searches Triggered 4 | . . . . . . . . . . . 3 . . . 1 . . . . Construction Impeded 3 | . . . . . . . . . . . 1 . . . . . 1 . 1 Haulers Reinforced 3 | . . . . . . . . . . . 2 . . . 1 . . . . Active Scanning Responses . | . . . . . . . . . . . . . . . . . . . . Cargo Convoy Interrupts 1 | . . . . . . . . . . . . . . . . . . . 1 Stealth | -11 -10 -10 -9 -9 -9 -8 -8 -8 -8 -8 -7 -7 -6 -6 -6 -6 -5 -5 -5 --------- Run | Yrd Mat Min Mat Min Exi Min Mat Gar Mat Gar Fac Gar Fac Gar Fac Gar Fac Was Fac Distress Signals 23 | . . . 3 . . . 2 . 6 1 3 . . . 5 . 2 . 1 Communications Jammed . | . . . . . . . . . . . . . . . . . . . . Distress Signals . | . . . . . . . . . . . . . . . . . . . . Times Spotted 470 | . 19 7 35 27 . 3 35 10 39 23 57 36 20 20 40 38 29 5 27 Peak Tracking Total 14 | . 4 2 5 14 . 3 6 3 5 5 5 4 7 3 9 8 12 5 6 Tactical Retreats 50 | . . . 5 1 . . . . 2 . 13 1 7 . 6 5 6 1 3 Traps | -11 -10 -10 -9 -9 -9 -8 -8 -8 -8 -8 -7 -7 -6 -6 -6 -6 -5 -5 -5 ------- Run | Yrd Mat Min Mat Min Exi Min Mat Gar Mat Gar Fac Gar Fac Gar Fac Gar Fac Was Fac Traps Triggered 37 | . . . 1 . . . . 3 2 . 4 6 . 4 3 13 1 . . Indirectly . | . . . . . . . . . . . . . . . . . . . . Trap Hack Attempts 49 | . . . 49 . . . . . . . . . . . . . . . . Triggered . | . . . . . . . . . . . . . . . . . . . . Disarmed 1 | . . . 1 . . . . . . . . . . . . . . . . Reprogrammed 2 | . . . 2 . . . . . . . . . . . . . . . . Reused . | . . . . . . . . . . . . . . . . . . . . Traps Extracted . | . . . . . . . . . . . . . . . . . . . . Installed . | . . . . . . . . . . . . . . . . . . . . Triggered 2 | . . . . . . . . . . . . . . . . . . . 2 Machines | -11 -10 -10 -9 -9 -9 -8 -8 -8 -8 -8 -7 -7 -6 -6 -6 -6 -5 -5 -5 ---------- Run | Yrd Mat Min Mat Min Exi Min Mat Gar Mat Gar Fac Gar Fac Gar Fac Gar Fac Was Fac Machines Disabled 49 | . 1 . . . . . 1 1 5 3 15 5 . 3 1 3 2 . 9 Max in Single Turn 7 | . 1 . . . . . 1 1 1 1 5 1 . 1 1 1 1 . 7 Garrison Access 3 | . . . . . . . . . . . 2 . . . 1 . . . . Garrison Relay 15 | . . . . . . . . 1 . 3 . 6 . 3 . 2 . . . Machines Repaired . | . . . . . . . . . . . . . . . . . . . . Machines Dismantled . | . . . . . . . . . . . . . . . . . . . . Machines Sabotaged . | . . . . . . . . . . . . . . . . . . . . Overloaded Fab Kills . | . . . . . . . . . . . . . . . . . . . . Hacking | -11 -10 -10 -9 -9 -9 -8 -8 -8 -8 -8 -7 -7 -6 -6 -6 -6 -5 -5 -5 --------- Run | Yrd Mat Min Mat Min Exi Min Mat Gar Mat Gar Fac Gar Fac Gar Fac Gar Fac Was Fac Machines Accessed 102 | . 5 . 9 1 2 . 8 . 11 3 24 3 9 2 11 2 5 . 7 Terminals 65 | . 5 . 6 . . . 6 . 9 3 12 3 6 2 4 2 4 . 3 Fabricators 11 | . . . . . . . . . . . 4 . 2 . 3 . . . 2 Repair Stations 12 | . . . 2 . . . 1 . 1 . 4 . . . 2 . 1 . 1 Recycling Units . | . . . . . . . . . . . . . . . . . . . . Scanalyzers 3 | . . . 1 . . . . . . . 1 . . . . . . . 1 Garrison Access 8 | . . . . . . . 1 . 1 . 3 . 1 . 2 . . . . Total Hacks 272 | . 18 . 34 1 4 . 24 . 19 7 62 4 21 6 28 4 10 . 30 Successful 149 | . 9 . 25 1 4 . 11 . 4 . 46 1 10 1 21 1 3 . 12 Failed 122 | . 9 . 8 . . . 13 . 15 7 16 3 11 5 7 3 7 . 18 Catastrophic 32 | . 3 . . . . . 4 . 5 1 3 1 4 2 3 1 2 . 3 Database Lockouts 1 | . . . 1 . . . . . . . . . . . . . . . . Manual 141 | . 9 . 18 . 1 . 16 . 16 . 33 . 14 2 14 . 5 . 13 Terminals 176 | . 18 . 26 . . . 20 . 16 7 30 4 13 6 11 4 8 . 13 Fabricators 37 | . . . . . . . . . . . 16 . 7 . 9 . . . 5 Repair Stations 23 | . . . 4 . . . 2 . 2 . 8 . . . 3 . 2 . 2 Recycling Units . | . . . . . . . . . . . . . . . . . . . . Scanalyzers 16 | . . . 4 . . . . . . . 2 . . . . . . . 10 Garrison Access 15 | . . . . . . . 2 . 1 . 6 . 1 . 5 . . . . Terminal Hacks 55 | . 8 . 15 1 4 . 5 . 1 . 9 1 1 1 4 1 1 . 3 Record 3 | . . . . . 3 . . . . . . . . . . . . . . Part Schematic 6 | . . . 2 . . . . . . . 1 . 1 . 1 . . . 1 Prototype ID Bank 3 | . 1 . 2 . . . . . . . . . . . . . . . . Open Door 3 | . . . . 1 . . . . . . . 1 . . . . 1 . . Branch Access Points 3 | . 1 . 1 . . . . . . . . . . . 1 . . . . Emergency Access Points 2 | . . . 1 . . . . . . . . . . . . 1 . . . Terminal Index 3 | . . . 1 . . . . . . . 1 . . . 1 . . . . Fabricator Index 2 | . . . . . . . . . . . 1 . . . . . . . 1 Garrison Index 1 | . . . . . . . . . . . 1 . . . . . . . . Alert Level 1 | . . . 1 . . . . . . . . . . . . . . . . Unreport Threat 3 | . 1 . . . . . . . . . 1 . . . . . . . 1 Locate Traps 7 | . 1 . 2 . . . 2 . . . 2 . . . . . . . . Maintenance Status 1 | . . . 1 . . . . . . . . . . . . . . . . Hauler Manifests 7 | . 1 . 2 . . . 1 . 1 . 1 . . . 1 . . . . Registered Components 1 | . 1 . . . . . . . . . . . . . . . . . . Zone Layout 7 | . 2 . 2 . . . 2 . . . 1 . . . . . . . . Security Stations 1 | . . . . . . . . . . . . . . 1 . . . . . Derelict Proto ID Bank 1 | . . . . . 1 . . . . . . . . . . . . . . Fabricator Hacks 22 | . . . . . . . . . . . 9 . 4 . 7 . . . 2 Network Status 1 | . . . . . . . . . . . . . . . 1 . . . . Load Schematic 15 | . . . . . . . . . . . 6 . 3 . 4 . . . 2 Build 6 | . . . . . . . . . . . 3 . 1 . 2 . . . . Repair Station Hacks 19 | . . . 4 . . . 2 . 1 . 8 . . . 2 . 1 . 1 Scan Component 11 | . . . 2 . . . 1 . 1 . 4 . . . 1 . 1 . 1 Repair 8 | . . . 2 . . . 1 . . . 4 . . . 1 . . . . Recycling Unit Hacks . | . . . . . . . . . . . . . . . . . . . . Scanalyzer 10 | . . . 4 . . . . . . . 2 . . . . . . . 4 Insert Component 5 | . . . 2 . . . . . . . 1 . . . . . . . 2 Analyze 5 | . . . 2 . . . . . . . 1 . . . . . . . 2 Garrison Access Hacks 10 | . . . . . . . 1 . 1 . 4 . 1 . 3 . . . . Unlock Access 5 | . . . . . . . 1 . 1 . 1 . 1 . 1 . . . . Seal Access 3 | . . . . . . . . . . . 2 . . . 1 . . . . Coupler Status 2 | . . . . . . . . . . . 1 . . . 1 . . . . Unauthorized Hacks 33 | . 1 . 2 . . . 3 . 1 . 14 . 4 . 5 . 1 . 2 Terminals 22 | . 1 . 2 . . . 3 . 1 . 7 . 3 . 3 . 1 . 1 Assimilate 7 | . . . . . . . 1 . . . 3 . 1 . 1 . . . 1 Botnet 11 | . . . 1 . . . 1 . 1 . 3 . 2 . 2 . 1 . . Operators 4 | . 1 . 1 . . . 1 . . . 1 . . . . . . . . Fabricators 9 | . . . . . . . . . . . 5 . 1 . 2 . . . 1 Haulers 2 | . . . . . . . . . . . 2 . . . . . . . . Recompile 7 | . . . . . . . . . . . 3 . 1 . 2 . . . 1 Repair Stations . | . . . . . . . . . . . . . . . . . . . . Recycling Units . | . . . . . . . . . . . . . . . . . . . . Scanalyzers . | . . . . . . . . . . . . . . . . . . . . Garrison Access 2 | . . . . . . . . . . . 2 . . . . . . . . Redirect 1 | . . . . . . . . . . . 1 . . . . . . . . Reprogram 1 | . . . . . . . . . . . 1 . . . . . . . . Data Cores Recovered 3 | . . . . . . . . . . . 2 . . . . . . . 1 Used 1 | . . . . . . . . . . . 1 . . . . . . . . Hacking Detections 84 | . 5 . 9 . . . 6 . 10 3 19 2 8 2 8 1 4 . 7 Full Trace Events 4 | . . . . . . . . . . . . . 1 . 1 . . . 2 Feedback Events 1 | . . . . . . . . . . . . . . . . . . . 1 Corruption 1 | . . . . . . . . . . . . . . . . . . . 1 Feedback Blocked . | . . . . . . . . . . . . . . . . . . . . Robot Schematics Acquired . | . . . . . . . . . . . . . . . . . . . . Robots Built . | . . . . . . . . . . . . . . . . . . . . Authchips . | . . . . . . . . . . . . . . . . . . . . Time . | . . . . . . . . . . . . . . . . . . . . Total Robot Build Rating . | . . . . . . . . . . . . . . . . . . . . Part Schematics Acquired 9 | . . . 4 . . . . . . . 2 . 1 . 1 . . . 1 Parts Built 11 | . . . . . . . . . . . 6 . 1 . 4 . . . . Authchips 6 | . . . . . . . . . . . 3 . 1 . 2 . . . . Time 378 | . . . . . . . . . . . 141 . 47 . 190 . . . . Total Part Build Rating 55 | . . . . . . . . . . . 30 . 5 . 20 . . . . Parts Repaired 7 | . . . 2 . . . . . . . 4 . . . 1 . . . . Time 327 | . . . 52 . . . 51 . . . 174 . . . 50 . . . . Parts Recycled . | . . . . . . . . . . . . . . . . . . . . Recycled Matter . | . . . . . . . . . . . . . . . . . . . . Retrieved Matter . | . . . . . . . . . . . . . . . . . . . . Retrieved Components . | . . . . . . . . . . . . . . . . . . . . Parts Scanalyzed 5 | . . . 2 . . . . . . . 1 . . . . . . . 2 Part Schematics Acquired 4 | . . . 2 . . . . . . . 1 . . . . . . . 1 Parts Damaged 1 | . . . . . . . . . . . 1 . . . . . . . . Bothacking | -11 -10 -10 -9 -9 -9 -8 -8 -8 -8 -8 -7 -7 -6 -6 -6 -6 -5 -5 -5 ------------ Run | Yrd Mat Min Mat Min Exi Min Mat Gar Mat Gar Fac Gar Fac Gar Fac Gar Fac Was Fac Used RIF Installer 4 | . . . . . . . . 1 . 1 . 1 . 1 . . . . . Coupler Efficiency 1 | . . . . . . . . . . . . 1 . . . . . . . Command Fork 1 | . . . . . . . . . . 1 . . . . . . . . . Robot Detection 1 | . . . . . . . . . . . . . . 1 . . . . . Robots Hacked 56 | . . . . . 4 . . . . 4 9 11 2 7 8 7 2 . 2 Non-combat 11 | . . . . . 3 . . . . . 5 . . . 1 . 2 . . Combat 45 | . . . . . 1 . . . . 4 4 11 2 7 7 7 . . 2 Robot Hacks Applied 67 | . . . . . 4 . . . . 4 12 12 2 7 11 7 5 . 3 parse_system 7 | . . . . . 4 . . . . . 2 . . . . 1 . . . no_distress 2 | . . . . . . . . . . . 1 . . . . . 1 . . find_chute 1 | . . . . . . . . . . . 1 . . . . . . . . ignore_repairs 1 | . . . . . . . . . . . . . . . 1 . . . . purge_threat 6 | . . . . . . . . . . . 2 . . . . . 4 . . block_reporting 1 | . . . . . . . . . . . 1 . . . . . . . . find_garrison 1 | . . . . . . . . . . . . . . . 1 . . . . overload_power 3 | . . . . . . . . . . . . 3 . . . . . . . amplify_resonance 6 | . . . . . . . . . . . . 1 . . 1 3 . . 1 disable_weapons 6 | . . . . . . . . . . 1 2 1 1 . . 1 . . . reboot_system 2 | . . . . . . . . . . . . . . . 2 . . . . go_dormant 2 | . . . . . . . . . . . . . . . 2 . . . . overwrite_iff 23 | . . . . . . . . . . 2 3 6 1 3 4 2 . . 2 streamctrl_high 2 | . . . . . . . . . . 1 . . . 1 . . . . . formatsys_high 4 | . . . . . . . . . . . . 1 . 3 . . . . . Relay Couplers Released 65 | . . . . . . . . 3 . 14 . 25 . 15 . 8 . . . Machine Destruction 57 | . . . . . . . . 3 . 14 . 21 . 11 . 8 . . . Programmers 8 | . . . . . . . . . . . . 4 . 4 . . . . . Attached 30 | . . . . . . . . . . 5 2 9 . 7 1 3 1 . 2 Fabnet Peak Effective % . | . . . . . . . . . . . . . . . . . . . . Robots Rewired 6 | . . . . . . . . . . . . . . . . 6 . . . Allies Hacked . | . . . . . . . . . . . . . . . . . . . . Hacks Repelled . | . . . . . . . . . . . . . . . . . . . . Allies | -11 -10 -10 -9 -9 -9 -8 -8 -8 -8 -8 -7 -7 -6 -6 -6 -6 -5 -5 -5 -------- Run | Yrd Mat Min Mat Min Exi Min Mat Gar Mat Gar Fac Gar Fac Gar Fac Gar Fac Was Fac Total Allies 46 | . . . . . . . 1 . . 3 7 9 2 8 5 9 . . 2 Largest Group 6 | . . . . . . . 1 . . 2 2 2 1 3 2 6 3 . 1 Highest-Rated Group 219 | . . . . . . . 10 . . 32 61 70 29 58 72 219 105 . 41 Highest-Rated Ally 85 | . . . . . . . 10 . . 16 32 39 29 32 41 85 41 . 41 Total Orders . | . . . . . . . . . . . . . . . . . . . . Ally Attacks 153 | . . . . . . . . . . 5 3 40 5 27 10 28 31 . 4 Total Damage 4172 | . . . . . . . . . . 70 139 795 97 401 372 1077 1107 . 114 Kills 18 | . . . . . . . . . . . 1 2 1 2 2 6 3 . 1 Allies Corrupted 2 | . . . . . . . . . . . . . . . . 2 . . . Allies Melted . | . . . . . . . . . . . . . . . . . . . . Field Lobotomies 1 | . . . . . . . . . . . . . . . . 1 . . . Intel | -11 -10 -10 -9 -9 -9 -8 -8 -8 -8 -8 -7 -7 -6 -6 -6 -6 -5 -5 -5 ------- Run | Yrd Mat Min Mat Min Exi Min Mat Gar Mat Gar Fac Gar Fac Gar Fac Gar Fac Was Fac Robot Analysis Total . | . . . . . . . . . . . . . . . . . . . . Derelict Logs Recovered 1 | . . . . 1 . . . . . . . . . . . . . . . Drone Launches . | . . . . . . . . . . . . . . . . . . . . Drone Recoveries . | . . . . . . . . . . . . . . . . . . . . Exploration | -11 -10 -10 -9 -9 -9 -8 -8 -8 -8 -8 -7 -7 -6 -6 -6 -6 -5 -5 -5 ------------- Run | Yrd Mat Min Mat Min Exi Min Mat Gar Mat Gar Fac Gar Fac Gar Fac Gar Fac Was Fac Turns Passed 21825 | 74 1135 465 1787 986 735 222 1606 940 2381 1590 2746 1504 628 646 1525 1178 532 75 1070 Spaces Moved 16607 | 40 595 241 809 542 454 105 722 337 1208 825 3880 1516 754 556 1590 941 506 109 877 Core 8 | 2 . . . . . . . 4 . . 1 . . . . . . . 1 Treads 5489 | 38 595 241 809 542 454 105 722 172 986 825 . . . . . . . . . Legs 302 | . . . . . . . . 161 141 . . . . . . . . . . Wheels 81 | . . . . . . . . . 81 . . . . . . . . . . Hover 10569 | . . . . . . . . . . . 3721 1516 754 556 1590 941 506 109 876 Flight 158 | . . . . . . . . . . . 158 . . . . . . . . Fastest Speed 27 | 50 160 160 160 160 160 160 160 190 95 158 27 71 68 68 68 53 40 41 41 Average Speed 99 | 154 160 160 160 160 160 160 170 250 167 158 43 71 68 68 69 79 78 43 72 Slowest Speed 800 | 160 160 160 160 240 160 160 240 700 320 163 300 71 68 71 71 196 121 50 800 Overloaded Moves . | . . . . . . . . . . . . . . . . . . . . Propulsion Burnouts . | . . . . . . . . . . . . . . . . . . . . Robots Hopped . | . . . . . . . . . . . . . . . . . . . . Cave-ins Triggered . | . . . . . . . . . . . . . . . . . . . . Exploration Rate (%) 51 | 4 79 55 52 94 67 26 40 38 85 74 64 67 22 53 34 70 16 76 18 Regions Visited 19 Branch Regions 4 Pre-discovered Areas 1 | . . . . . 1 . . . . . . . . . . . . . . Known Exits Taken 7 | . 1 . 1 . . . 1 . 1 . 1 . 1 . 1 . . . . Unknown Exits Taken 5 | 1 . 1 . 1 1 1 . . . . . . . . . . . . . Scrap Searched 4 | . . 2 . 2 . . . . . . . . . . . . . . . Spaces Dug 185 | . . . . . . . 14 15 19 . 47 40 5 . 15 28 1 . 1 Terrain Destroyed 643 | . . . . 54 . . 14 33 70 15 68 105 6 35 24 78 53 . 88 Melee 67 | . . . . . . . 14 . 4 . 43 1 3 . 2 . . . . Projectile 57 | . . . . . . . . . . . 15 1 3 . 22 2 1 . 13 AOE 519 | . . . . 54 . . . 33 66 15 10 103 . 35 . 76 52 . 75 Terrain Rammed . | . . . . . . . . . . . . . . . . . . . . Walls Destroyed . | . . . . . . . . . . . . . . . . . . . . Machines Disabled . | . . . . . . . . . . . . . . . . . . . . Actions | -11 -10 -10 -9 -9 -9 -8 -8 -8 -8 -8 -7 -7 -6 -6 -6 -6 -5 -5 -5 --------- Run | Yrd Mat Min Mat Min Exi Min Mat Gar Mat Gar Fac Gar Fac Gar Fac Gar Fac Was Fac Total 20324 | 49 692 278 1109 596 460 134 908 407 1424 1013 4707 1796 853 743 1893 1269 603 136 1254 Wait 1468 | . 18 1 85 6 . 5 30 31 50 61 418 55 51 98 152 76 45 21 265 Move 16590 | 39 594 240 808 541 453 104 721 335 1208 823 3880 1515 753 555 1590 940 506 108 877 Hop . | . . . . . . . . . . . . . . . . . . . . Pick Up 179 | 4 18 5 14 2 1 3 11 1 6 8 40 17 9 3 10 8 4 2 13 Fast Attach 118 | 6 1 . 8 1 . 1 8 2 8 10 29 1 3 6 8 11 7 1 7 Attach 96 | . 1 2 6 1 . 5 5 . 3 5 31 4 5 2 6 6 2 1 11 Detach 56 | . 1 . 3 . . . 3 . 1 3 24 3 3 2 4 3 . . 6 Swap 228 | . 2 3 14 4 1 2 18 3 13 11 34 34 10 20 22 22 9 . 6 Drop 179 | . 9 5 19 3 . . 13 1 18 8 48 11 7 4 8 12 3 3 7 Fire 846 | . 46 22 100 36 . 14 59 26 105 76 65 50 3 41 66 69 21 . 47 Melee 293 | . . . 1 . 5 . 37 . 5 7 125 52 9 7 20 10 5 . 10 Ram 6 | . . . . . . . . . . . . . . . . . 1 . 5 Kick . | . . . . . . . . . . . . . . . . . . . . Crush 15 | . 2 . 2 1 . . 3 . 7 . . . . . . . . . . Escape Stasis 198 | . . . . . . . . 8 . . 13 54 . 4 7 112 . . . Rewire 3 | . . . . 1 . . . . . 1 . . . 1 . . . . . Trap 49 | . . . 49 . . . . . . . . . . . . . . . . Miscellaneous . | . . . . . . . . . . . . . . . . . . . . Route ------- -11/Scrapyard -10/Materials (discovered 4 exits: *Mat x3 / *Min) -10/Mines -9/Materials (discovered 2 exits: *Mat / *Min) -9/Mines (discovered 3 exits: *Mat x2 / *Exi) -9/Exiles (discovered 2 exits: [*Min x2]) -8/Mines -8/Materials (discovered 3 exits: *Fac / [*Sto] / Gar) -8/Garrison -8/Materials (discovered 5 exits: *Fac x3 / [*Sto] / Gar) -8/Garrison (discovered 4 exits: *Fac x3 / [*Mat]) -7/Factory (discovered 6 exits: *Fac x4 / [*Low] / Gar) -7/Garrison (discovered 3 exits: *Fac x3) -6/Factory (discovered 3 exits: *Fac / *Low / Gar) -6/Garrison (discovered 2 exits: *Fac x2) -6/Factory (discovered 3 exits: *Low x2 / Gar) -6/Garrison (discovered 2 exits: *Fac x2) -5/Factory (discovered 2 exits: [*Fac] / [*Ext]) -5/Waste -5/Factory (discovered 1 exit: [*Ext]) History --------- Turn | Location | Event 7 | -11/Scrapyard | Discovered new exit (range 15) 75 | -11/Scrapyard | Entered Materials 275 | -10/Materials | Discovered new exit (range 12) 307 | -10/Materials | Build established: Mutant 427 | -10/Materials | Discovered new exit (range 6) 607 | -10/Materials | Identified exit to Mines 997 | -10/Materials | Discovered new exit (range 15) 1210 | -10/Materials | Entered Mines 1283 | -10/Mines | Met a Derelict bent on vengeance 1299 | -10/Mines | Joined a pair of Derelicts in attacking an 0b10 outpost 1641 | -10/Mines | Discovered new exit (range 12) 1675 | -10/Mines | Entered Materials 1675 | -9/Materials | Evolved 2 slots: Propulsion x1, Utility x1 1730 | -9/Materials | Repaired Lgt. Treads 1922 | -9/Materials | Build established: Scavenger-Mutant 2226 | -9/Materials | Repaired Lgt. Treads 2295 | -9/Materials | Identified exit to Mines 2298 | -9/Materials | Lost 3 parts (1u2w) 2314 | -9/Materials | Discovered new exit (range 16) 2869 | -9/Materials | Central database locked down 3462 | -9/Materials | Entered Mines 3475 | -9/Mines | Discovered new exit (range 11) 3486 | -9/Mines | Met a Derelict shopkeep closing up shop 3550 | -9/Mines | Learned Materials interactive machine intel 4014 | -9/Mines | Discovered new exit (range 8) 4220 | -9/Mines | Assembled infested the area 4225 | -9/Mines | Assisted by a Guerilla fighting off Assembled 4244 | -9/Mines | Core integrity fell below 50% 4275 | -9/Mines | Lost 3 parts (2u1w) 4301 | -9/Mines | Destroyed 16 combat bots 4441 | -9/Mines | Deemed a non-threat by the Exiles lab entrance 4441 | -9/Mines | Discovered new exit (range 5) 4448 | -9/Mines | Entered Exiles 4471 | -9/Exiles | Discovered new exit (range 15) 4493 | -9/Exiles | Met 8R-AWN 4517 | -9/Exiles | Met EX-HEX 4562 | -9/Exiles | Met EX-BIN 4626 | -9/Exiles | Met EX-DEC 4744 | -9/Exiles | Aligned with FarCom system 4745 | -9/Exiles | Given EX-Vault access code 4782 | -9/Exiles | Opened EX-Vault 4817 | -9/Exiles | Warned to stay clear of 0b10 Research branches 4851 | -9/Exiles | Found Field Lobotomy Kit 4945 | -9/Exiles | Learned location of Zion (-6) 5170 | -9/Exiles | Discovered new exit (range 10) 5183 | -9/Exiles | Left Exiles lab with Field Lobotomy Kit 5183 | -9/Exiles | Entered Mines 5203 | -8/Mines | Core integrity fell below 20% 5234 | -8/Mines | Lost 5 parts (1p3n1w) 5396 | -8/Mines | Discovered new exit (range 6) 5405 | -8/Mines | Entered Materials 5405 | -8/Materials | Evolved 2 slots: Propulsion x1, Utility x1 5406 | -8/Materials | Loaded intel: 19 interactive machine locations 5487 | -8/Materials | Discovered new exit (range 14) 5774 | -8/Materials | Lost 3 parts (1u2w) 5843 | -8/Materials | Discovered new exit (range 15) 6727 | -8/Materials | Lost 3 parts (2n1w) 7003 | -8/Materials | Identified exit to Garrison 7011 | -8/Materials | Entered Garrison 7092 | -8/Garrison | Build established: Mutant 7123 | -8/Garrison | Installed Relay Interface Framework 7148 | -8/Garrison | Triggered checkpoint 7192 | -8/Garrison | Garrison Relay disabled 7378 | -8/Garrison | Triggered checkpoint 7652 | -8/Garrison | Triggered checkpoint 7909 | -8/Garrison | Discovered new exit (range 15) 7951 | -8/Garrison | Entered Materials 7971 | -8/Materials | Discovered new exit (range 7) 8772 | -8/Materials | Discovered new exit (range 16) 8882 | -8/Materials | Build established: Scavenger-Mutant 9027 | -8/Materials | Discovered new exit (range 10) 9211 | -8/Materials | Build established: Mutant 9298 | -8/Materials | Discovered new exit (range 9) 10332 | -8/Materials | Identified exit to Garrison 10332 | -8/Materials | Entered Garrison 10464 | -8/Garrison | Garrison Relay disabled 10563 | -8/Garrison | Core integrity fell below 50% 10594 | -8/Garrison | Lost 3 parts (1p2u) 10626 | -8/Garrison | Triggered checkpoint 11043 | -8/Garrison | Discovered new exit (range 10) 11084 | -8/Garrison | Triggered checkpoint 11120 | -8/Garrison | Build established: Scavenger-Mutant 11162 | -8/Garrison | Triggered checkpoint 11252 | -8/Garrison | Garrison Relay disabled 11474 | -8/Garrison | Triggered checkpoint 11512 | -8/Garrison | Triggered checkpoint 11587 | -8/Garrison | Discovered new exit (range 13) 11618 | -8/Garrison | Triggered checkpoint 11663 | -8/Garrison | Garrison Relay disabled 11739 | -8/Garrison | Discovered new exit (range 5) 11875 | -8/Garrison | Discovered new exit (range 13) 11892 | -8/Garrison | Expanded RIF knowledge: Command Fork 11922 | -8/Garrison | Entered Factory 11922 | -7/Factory | Evolved 2 slots: Utility x2 12123 | -7/Factory | Repaired Lrg. Storage Unit 12542 | -7/Factory | Discovered new exit (range 11) 12547 | -7/Factory | Build established: Mutant 12818 | -7/Factory | Discovered new exit (range 14) 12924 | -7/Factory | Repaired Gravmag System 13069 | -7/Factory | Discovered new exit (range 19) 13131 | -7/Factory | Discovered new exit (range 14) 13162 | -7/Factory | Repaired Imp. Light Armor Plating? 13277 | -7/Factory | Build established: Hacker-Mutant 13522 | -7/Factory | Search patrols dispatched 13706 | -7/Factory | Fabricated Cmb. Airjet? 13881 | -7/Factory | Discovered new exit (range 20) 13922 | -7/Factory | Search patrols dispatched 14366 | -7/Factory | Search patrols dispatched 14377 | -7/Factory | Repaired Broken Mni. Assault Cannon 14579 | -7/Factory | Fabricated Cmb. Airjet (x2) 14634 | -7/Factory | Fabricated Cmb. Airjet (x2) 14658 | -7/Factory | Identified exit to Garrison 14668 | -7/Factory | Entered Garrison 14668 | -7/Garrison | Accompanied by 1 ally 14690 | -7/Garrison | Triggered checkpoint 14750 | -7/Garrison | Garrison Relay disabled 14884 | -7/Garrison | Triggered checkpoint 14950 | -7/Garrison | Build established: Machinist-Mutant 14965 | -7/Garrison | Destroyed 7 combat bots 14970 | -7/Garrison | Discovered new exit (range 11) 14980 | -7/Garrison | Triggered checkpoint 15011 | -7/Garrison | Garrison Relay disabled 15068 | -7/Garrison | Triggered checkpoint 15078 | -7/Garrison | Garrison Relay disabled 15124 | -7/Garrison | Triggered checkpoint 15253 | -7/Garrison | Build established: Bothacker-Mutant 15294 | -7/Garrison | Triggered checkpoint 15308 | -7/Garrison | Discovered new exit (range 11) 15362 | -7/Garrison | Triggered checkpoint 15390 | -7/Garrison | Triggered checkpoint 15418 | -7/Garrison | Triggered checkpoint 15424 | -7/Garrison | Garrison Relay disabled 15625 | -7/Garrison | Discovered new exit (range 19) 15654 | -7/Garrison | Garrison Relay disabled 15666 | -7/Garrison | Triggered checkpoint 15780 | -7/Garrison | Rescued a captive Derelict 15780 | -7/Garrison | Rescued a captive Derelict 15909 | -7/Garrison | Garrison Relay disabled 15954 | -7/Garrison | Expanded RIF knowledge: Coupler Efficiency 16024 | -7/Garrison | Triggered checkpoint 16172 | -7/Garrison | Entered Factory 16172 | -6/Factory | Evolved 2 slots: Propulsion x1, Utility x1 16258 | -6/Factory | Discovered new exit (range 9) 16549 | -6/Factory | Spotted B-75 Beast 16578 | -6/Factory | Discovered new exit (range 14) 16691 | -6/Factory | Fabricated Stasis Canceller (x1) 16795 | -6/Factory | Identified exit to Garrison 16800 | -6/Factory | Entered Garrison 16830 | -6/Garrison | Triggered checkpoint 16854 | -6/Garrison | Garrison Relay disabled 16946 | -6/Garrison | Triggered checkpoint 16970 | -6/Garrison | Heavy support dispatched to Factory 17010 | -6/Garrison | Discovered new exit (range 14) 17011 | -6/Garrison | Spotted B-86 Titan 17014 | -6/Garrison | Spotted B-86 Titan 17054 | -6/Garrison | Learned Factory security intel 17061 | -6/Garrison | Expanded RIF knowledge: Robot Detection 17068 | -6/Garrison | Garrison Relay disabled 17084 | -6/Garrison | Triggered checkpoint 17154 | -6/Garrison | Triggered checkpoint 17154 | -6/Garrison | Triggered checkpoint 17158 | -6/Garrison | Discovered new exit (range 10) 17182 | -6/Garrison | Triggered checkpoint 17200 | -6/Garrison | Garrison Relay disabled 17330 | -6/Garrison | Heavy support dispatched to Factory 17333 | -6/Garrison | Heavy support dispatched to Factory 17375 | -6/Garrison | Lost 4 parts (2n2u) 17446 | -6/Garrison | Entered Factory 17500 | -6/Factory | Build established: Botlord-Mutant 17594 | -6/Factory | Repaired Cmb. Airjet 17796 | -6/Factory | First assault squad dispatched 17853 | -6/Factory | Discovered new exit (range 6) 18054 | -6/Factory | Identified exit to Lower Caves 18074 | -6/Factory | Fabricated Cmb. Airjet? 18246 | -6/Factory | Spotted B-75 Beast 18840 | -6/Factory | System corruption reached 10% 18846 | -6/Factory | Search patrols dispatched 18892 | -6/Factory | Fabricated Weapon Mount? 18894 | -6/Factory | Build established: Bothacker-Mutant 18971 | -6/Factory | Identified exit to Garrison 18971 | -6/Factory | Entered Garrison 19091 | -6/Garrison | Spotted B-75 Beast 19114 | -6/Garrison | Triggered checkpoint 19164 | -6/Garrison | Assimilated B-75 Beast with FLK Orb 19230 | -6/Garrison | Found Unknown Launcher 19230 | -6/Garrison | Identified Gamma Bomb Array 19235 | -6/Garrison | Found Fusion Bomb Launcher 19372 | -6/Garrison | Triggered checkpoint 19402 | -6/Garrison | Discovered new exit (range 10) 19542 | -6/Garrison | Triggered checkpoint 19552 | -6/Garrison | Core integrity fell below 50% 19584 | -6/Garrison | Lost 3 parts (3n) 19640 | -6/Garrison | Garrison Relay disabled 19930 | -6/Garrison | Triggered checkpoint 20064 | -6/Garrison | Garrison Relay disabled 20143 | -6/Garrison | Discovered new exit (range 7) 20149 | -6/Garrison | Entered Factory 20149 | -5/Factory | Accompanied by 3 allies 20149 | -5/Factory | Evolved 2 slots: Propulsion x2 20262 | -5/Factory | Destroyed 8 combat bots 20287 | -5/Factory | Lost 3 allies 20449 | -5/Factory | First assault squad dispatched 20664 | -5/Factory | Discovered new exit (range 16) 20679 | -5/Factory | Discovered new exit (range 6) 20681 | -5/Factory | Sucked down chute 20681 | -5/Factory | Entered Waste 20684 | -5/Waste | Spotted C-40 Crusher 20685 | -5/Waste | Spotted C-40 Crusher 20705 | -5/Waste | Spotted C-40 Crusher 20711 | -5/Waste | Spotted C-40 Crusher 20716 | -5/Waste | Crushed by Compactor (1 part destroyed, 1 dropped) 20737 | -5/Waste | Spotted C-40 Crusher 20741 | -5/Waste | Discovered new exit (range 15) 20756 | -5/Waste | Entered Factory 21045 | -5/Factory | Lost 4 parts (1p1n1u1w) 21193 | -5/Factory | Found Prototype Launcher 21193 | -5/Factory | Identified Mni. Smartbomb Launcher 21245 | -5/Factory | Discovered new exit (range 15) 21332 | -5/Factory | Core integrity fell below 50% 21384 | -5/Factory | Lost 9 parts (1p4n3u1w) 21511 | -5/Factory | Cargo convoy interrupted 21658 | -5/Factory | Found Mni. Smartbomb Launcher 21819 | -5/Factory | Core integrity fell below 20% 21826 | -5/Factory | Destroyed by Light Fission Core chain reaction Last Messages --------------- 21813_ P-70 Sage destroyed. 21813_ Slug penetrates Door. 21815_ Slug penetrates Wall. 21815_ Gyrokinetic Inverter destroyed. 21816_ Acquired 46 matter. 21817_ Slug penetrates Wall. 21821_ Wall collapses. 21821_ Penetrated by Slug. 21821_ U-05 Engineer builds a Wall. 21822_ Enh. Nuclear Core destroyed. 21823_ Penetrated by Slug. 21824_ U-05 Engineer builds a Wall. 21825_ Penetrated by Slug. 21825_ Jacked H-66 Slayer... >>amplify_resonance Amplifying resonance, compromised power stability. 21825_ K-01 Serf collects debris. 21825_ Slug penetrates Wall. 21826_ H-66 Slayer Unknown Power Core critical resonance detonation. 21826_ H-66 Slayer destroyed. Map ----- +----------------------------------------------------+ | ?????????????????????????????????????????????????? | | ?????????????????????????????????????????????????? | | ?????????????????????????????????????????????????? | | ?????????????????????????????????????????????????? | | ?????????????????????????????????????????????????? | | ?????????????????????????????????????????????????? | | ?????????????????????????????????????????????????? | | ?????????????????????????????????????????????????? | | ?????????????????????????????????????????????????? | | ?????????????????????????????????????????????????? | | ?????????????????????????????????????????????????? | | ????????????????????#########????????????????????? | | ????????????#+#?????# ###########??????????? | | ???????????? ##### w ??????????? | | ??????????? ?????????? | | ?????????????Y ?????????? | | ????????????? ?? ??????????? | | ????????????? ?????# ???????????????? | | ????????????? #?????# " #????????????????????? | | ????????????? #?????####%####?????????????????h??? | | ????????????? #????????#"#???????????????????????? | | ????????????? #????????# #???????????????????????? | | ??????####### ##########/#???????????????????????? | | ?????## ## m h#???????????????????????? | | ###?### ## k%# ??????????????????????? | | ### # ## h@;########??????????????? | | " ## # ## up #??????????????? | | " ## # u %p;##### #??????????????? | | " ## # ## ##???? #??????????????? | | " # # ## #????# #??????????????? | | " # # ## u u #????# #??????????????? | | # ## ##+#######+#????# #??????????????? | | # # # ####### ###### #??????????????? | | ####### +??????????????? | | ####### #??????????????? | | ###### #?????# #??????????????? | | ###### #????## #??????????????? | | + #?#####+## #??????????????? | | " ####+## #?# # ############+#?? | | """ # # #?# """ # # ! #?? | | """ ## # #?#! """ # # / """ +?? | | """ ## T # ### R" # # / / """ #?? | | """ ## " # + """ #^^^^^ ^+ """ #?? | | """ ## # # # # =#?? | | """ ## # h #####+## ########/###########?? | | ## # #??????# ######??????? | | ## # ###???????# # ???????? | | ####### #?????????# # ???????? | | + #?????????#=# ????????? | | ############# #?????????# # ????????? | +----------------------------------------------------+ Best States ------------- Heat Dissipation 67 Coolant Potential 65 Energy Generation 23 Energy Capacity 300 Matter Stores 300 Matter Capacity 300 Sight Range 20 Terrain Scan Density 10 Jamming Range 14 Armor Coverage 525 Core Shielding 20 Propulsion Shielding 66 Weapon Shielding 66 Evasion (%) 64 Targeting Accuracy 28 Recoil Reduction 4 Kinecelleration 30 Offensive Hacking 20 Defensive Hacking 10 Relay Coupler Types 4 Relay Coupler Value 132 Authchip Count 2 Item Schematics ----------------- Med. Storage Unit | -9/Materials | Hacked Hcp. Storage Unit | -9/Materials | Hacked Hacking Suite | -9/Materials | Scanalyzed Mni. Grenade Launcher | -9/Materials | Scanalyzed Cmb. Airjet | -7/Factory | Hacked Mni. Assault Cannon | -7/Factory | Scanalyzed Stasis Canceller | -6/Factory | Hacked Weapon Mount | -6/Factory | Hacked Cmb. Antigrav System | -5/Factory | Scanalyzed Robot Schematics ------------------ None Fabricated ------------ Cmb. Airjet | x2 | -7/Factory | Authchip Cmb. Airjet | x2 | -7/Factory | Authchip Cmb. Airjet | x2 | -7/Factory | Authchip Stasis Canceller | x1 | -6/Factory | Authchip Cmb. Airjet | x2 | -6/Factory | Authchip Weapon Mount | x2 | -6/Factory | Authchip Alien Tech Used ----------------- None Achievements -------------- Assassin Assimilation Complete Exterminator Infiltrator Universal Adapter Challenges ------------ None Game ------ Seed FactorySingularityShielding Manual? 0 Play Time 03:52:56 Cumulative 91.4 hours Start 2024.03.12 @ 16:46:57 End 2024.03.26 @ 20:45:54 Sessions 21 Manual Loads 0 Difficulty Rogue Special Mode None Game No. 56 Rogue 56 Adventurer 0 Explorer 0 Win Type - Total 3 Types 2/0/0/1/0/0/0/0/0 Lore% 70 Gallery% 63 Achievement% 58 Wizard Run 0 Options --------- Layout 0 ASCII 0 Keyboard 1 Movement Numpad Keybinds 0 Fullscreen 1 Font 18/SmallcapsGlow Map View 76x50 Zoom Use 0% Tactical HUD 1 Map Filters NONE Filters NONE Steam 1 RUN: 29f585d7-5c30-4c77-883f-a5e9969317d3